fUST/lending_fUST_20260430
["ID","MTS","AMOUNT","RATE_DAILY","PERIOD"]
[421377562,1777517441000,-2329.1941798,0.0001,10]
[421377563,1777517441000,-1909.03490736,0.0001,10]
[421377561,1777517441000,-3922.60966843,0.0001,10]
[421377633,1777517443000,-1000.0,0.00016319,2]
[421377640,1777517443000,-2150.738,0.00018904,2]
[421377651,1777517443000,-500.0,0.00018998,2]
[421377648,1777517443000,-500.0,0.00018998,2]
[421377644,1777517443000,-500.0,0.00018998,2]
[421377623,1777517443000,-3623.19600362,0.0001,10]
[421377634,1777517443000,-258.0,0.00017999,2]
[421377631,1777517443000,-231.0,0.00015999,2]
[421377629,1777517443000,-204.0,0.00013999,2]
[421377627,1777517443000,-1000.0,0.00013699,2]
[421377625,1777517443000,-177.0,0.00011999,2]
[421377646,1777517443000,-500.0,0.00018998,2]
[421377636,1777517443000,-1026.7691664,0.00018,7]
[421377642,1777517443000,-667.3402928,0.00018998,2]
[421377661,1777517443000,-500.0,0.00018998,2]
[421377655,1777517443000,-500.0,0.00018998,2]
[421377676,1777517443000,-500.0,0.00018998,2]
[421377667,1777517443000,-500.0,0.00018998,2]
[421377663,1777517443000,-500.0,0.00018998,2]
[421377638,1777517443000,-224.76386645,0.00018575,2]
[421377674,1777517443000,-500.0,0.00018998,2]
[421377669,1777517443000,-473.33026663,0.00018998,2]
[421377672,1777517443000,-500.0,0.00018998,2]
[421377665,1777517443000,-500.0,0.00018998,2]
[421377659,1777517443000,-500.0,0.00018998,2]
[421377657,1777517443000,-447.88480795,0.00018998,2]
[421377649,1777517443000,-500.0,0.00018998,2]
[421377653,1777517443000,-500.0,0.00018998,2]
[421377670,1777517443000,-500.0,0.00018998,2]
[421377719,1777517444000,-3349.5961798,0.00019738,2]
[421377725,1777517444000,-151.0,0.00019738,2]
[421377708,1777517444000,-296.9124689,0.00019681,2]
[421377733,1777517444000,-154.305854,0.00019738,2]
[421377731,1777517444000,-151.0,0.00019738,2]
[421377743,1777517444000,-151.0,0.00019738,2]
[421377714,1777517444000,-151.0,0.00019681,2]
[421377729,1777517444000,-151.0,0.00019738,2]
[421377735,1777517444000,-151.0,0.00019738,2]
[421377737,1777517444000,-151.0,0.00019738,2]
[421377739,1777517444000,-151.0,0.00019738,2]
[421377722,1777517444000,-152.603055,0.00019738,2]
[421377711,1777517444000,-151.0,0.00019681,2]
[421377716,1777517444000,-176.783,0.00019726,2]
[421377686,1777517444000,-6000.0,0.00019,2]
[421377705,1777517444000,-264.76660743,0.00019638,2]
[421377689,1777517444000,-2212.0,0.00019009,2]
[421377701,1777517444000,-151.0,0.0001962,2]
[421377691,1777517444000,-173.3158,0.000193,2]
[421377703,1777517444000,-151.0,0.0001962,2]
[421377685,1777517444000,-496.49828937,0.00019,4]
[421377746,1777517444000,-151.0,0.00019738,2]
[421377697,1777517444000,-6000.0,0.0001962,2]
[421377695,1777517444000,-540.92244231,0.00019603,2]
[421377693,1777517444000,-230.12831159,0.00019603,2]
[421377683,1777517444000,-500.0,0.00018998,2]
[421377680,1777517444000,-500.0,0.00018998,2]
[421377678,1777517444000,-500.0,0.00018998,2]
[421377699,1777517444000,-151.0,0.0001962,2]
[421377744,1777517444000,-271.115816,0.00019738,2]
[421377799,1777517444000,-200.25691,0.00019897,2]
[421377741,1777517444000,-152.509051,0.00019738,2]
[421377748,1777517444000,-151.0,0.00019738,2]
[421377811,1777517444000,-729.67770619,0.000199,2]
[421377809,1777517444000,-6433.4622031,0.000199,2]
[421377807,1777517444000,-151.0,0.00019898,2]
[421377805,1777517444000,-151.0,0.00019898,2]
[421377793,1777517444000,-151.0,0.00019895,2]
[421377794,1777517444000,-151.0,0.00019897,2]
[421377802,1777517444000,-151.0,0.00019898,2]
[421377790,1777517444000,-151.874813,0.00019895,2]
[421377801,1777517444000,-151.0,0.00019897,2]
[421377788,1777517444000,-9.66998401,0.00019895,2]
[421377785,1777517444000,-141.33001599,0.00019895,2]
[421377775,1777517444000,-107.90997953,0.00019894,2]
[421377783,1777517444000,-152.146221,0.00019895,2]
[421377797,1777517444000,-252.253531,0.00019897,2]
[421377769,1777517444000,-786.01780775,0.00019795,2]
[421377771,1777517444000,-151.0,0.00019894,2]
[421377758,1777517444000,-210.401922,0.00019738,2]
[421377760,1777517444000,-282.418481,0.00019738,2]
[421377756,1777517444000,-151.0,0.00019738,2]
[421377752,1777517444000,-153.696966,0.00019738,2]
[421377754,1777517444000,-151.0,0.00019738,2]
[421377762,1777517444000,-210.401922,0.00019738,2]
[421377750,1777517444000,-151.0,0.00019738,2]
[421377767,1777517444000,-827.52158911,0.00019795,2]
[421377779,1777517444000,-151.0,0.00019895,2]
[421377777,1777517444000,-43.09002047,0.00019894,2]
[421377781,1777517444000,-151.507512,0.00019895,2]
[421377773,1777517444000,-151.0,0.00019894,2]
[421377765,1777517444000,-2000.0,0.0001976,7]
[421377850,1777517447000,-152.0,0.00019571,7]
[421377851,1777517447000,-152.0,0.00019571,7]
[421377854,1777517447000,-1582.31576087,0.000199,2]
[421377853,1777517447000,-210.401922,0.00019738,2]
[421377852,1777517447000,-210.401922,0.00019738,2]
[421377857,1777517904000,10000.0,0.00021918,120]
[421377858,1777517915000,10000.0,0.00021918,120]
[421377859,1777518367000,-150.0,0.0002495,2]
[421377881,1777518631000,-177.0,0.00015244,2]
[421377864,1777518631000,-400.499995,0.00012897,10]
[421377876,1777518631000,-150.0,0.00013244,2]
[421377877,1777518631000,-160.0,0.00013695,2]
[421377880,1777518631000,-1000.0,0.00013699,2]
[421377883,1777518631000,-204.0,0.00017244,2]
[421377887,1777518631000,-217.72186631,0.00018009,2]
[421377890,1777518631000,-782.27813369,0.00018009,2]
[421377892,1777518631000,-325.4780488,0.00018297,2]
[421377901,1777518631000,-374.72128399,0.00018905,2]
[421377895,1777518631000,-151.0,0.00018297,2]
[421377899,1777518631000,-563.78289076,0.00018905,2]
[421377896,1777518631000,-252.0,0.00018904,2]
[421377885,1777518631000,-150.86516369,0.00018,2]
[421377905,1777518632000,-1893.27396411,0.00018905,2]
[421377903,1777518632000,-1870.07871603,0.00018905,2]
[421377944,1777518637000,-1358.18440604,0.00018905,2]
[421377945,1777518637000,-422.87214738,0.00018905,2]
[421377949,1777518637000,-333.04,0.00019,10]
[421377950,1777518637000,-151.0,0.00019119,2]
[421377946,1777518637000,-4577.12785262,0.00018905,2]
[421377951,1777518637000,-151.0,0.00019119,2]
[421377948,1777518637000,-6000.0,0.00019,2]
[421377952,1777518637000,-231.0,0.00019244,2]
[421377953,1777518637000,-421.72145701,0.00019475,2]
[421377954,1777518637000,-166.766574,0.00019475,2]
[421377947,1777518637000,-336.83,0.00018979,2]
[421377960,1777518638000,-500.0,0.00019619,2]
[421377967,1777518638000,-500.0,0.00019619,2]
[421377971,1777518638000,-500.0,0.00019619,2]
[421377968,1777518638000,-500.0,0.00019619,2]
[421377966,1777518638000,-494.33947331,0.00019619,2]
[421377973,1777518638000,-176.783,0.00019885,2]
[421377970,1777518638000,-500.0,0.00019619,2]
[421377969,1777518638000,-500.0,0.00019619,2]
[421377957,1777518638000,-500.0,0.00019619,2]
[421377955,1777518638000,-852.94820911,0.0001952,2]
[421377962,1777518638000,-497.03669629,0.00019619,2]
[421377958,1777518638000,-500.0,0.00019619,2]
[421377959,1777518638000,-160.87608977,0.00019619,2]
[421377956,1777518638000,-202.1,0.00019566,2]
[421377964,1777518638000,-500.0,0.00019619,2]
[421377965,1777518638000,-500.0,0.00019619,2]
[421377963,1777518638000,-500.0,0.00019619,2]
[421377975,1777518638000,-2008.08373796,0.00019897,2]
[421377961,1777518638000,-403.71905942,0.00019619,2]
[421377977,1777518638000,-2008.08373796,0.00019897,2]
[421377992,1777518638000,-2008.08373796,0.00019897,2]
[421377972,1777518638000,-6000.0,0.0001962,2]
[421377996,1777518638000,-3771.27036072,0.00019898,2]
[421377995,1777518638000,-1509.5865512,0.00019898,2]
[421377993,1777518638000,-673.64065418,0.00019898,2]
[421377994,1777518638000,-1717000.81651954,0.00019898,2]
[421377991,1777518638000,-2008.08373796,0.00019897,2]
[421377988,1777518638000,-2008.08373796,0.00019897,2]
[421377985,1777518638000,-2008.08373796,0.00019897,2]
[421377986,1777518638000,-2008.08373796,0.00019897,2]
[421377987,1777518638000,-2008.08373796,0.00019897,2]
[421377984,1777518638000,-2008.08373796,0.00019897,2]
[421377982,1777518638000,-2008.08373796,0.00019897,2]
[421377981,1777518638000,-2008.08373796,0.00019897,2]
[421377990,1777518638000,-2008.08373796,0.00019897,2]
[421377978,1777518638000,-2008.08373796,0.00019897,2]
[421377980,1777518638000,-2008.08373796,0.00019897,2]
[421377989,1777518638000,-2008.08373796,0.00019897,2]
[421377979,1777518638000,-2008.08373796,0.00019897,2]
[421377976,1777518638000,-2008.08373796,0.00019897,2]
[421377983,1777518638000,-2008.08373796,0.00019897,2]
[421377974,1777518638000,-361.44862569,0.00019897,2]
[421378093,1777518646000,-6439.79107111,0.00019898,2]
[421378087,1777518646000,-3168.06837756,0.00019898,2]
[421378152,1777519612000,170.57903584,0.0001926,120]
[421378196,1777519831000,-1000.0,0.00013699,2]
[421378198,1777519831000,-150.0,0.00013699,2]
[421378200,1777519831000,-1000.0,0.00013699,2]
[421378201,1777519831000,-603.0,0.00013699,2]
[421378203,1777519831000,-858.96834545,0.00013809,2]
[421378509,1777519843000,-5701.54543688,0.00014809,2]
[421378507,1777519843000,-253.76204316,0.00014808,2]
[421378511,1777519843000,-5961.32695326,0.00014909,2]
[421378521,1777519843000,-420.0,0.00015346,2]
[421378523,1777519843000,-7724.01547291,0.00015409,2]
[421378525,1777519843000,-7910.86941413,0.00015509,2]
[421378512,1777519843000,-6529.6910563,0.00015009,2]
[421378529,1777519843000,-8308.69739718,0.00015609,2]
[421378527,1777519843000,-1055.54422002,0.00015509,2]
[421378514,1777519843000,-374.14086878,0.00015107,2]
[421378532,1777519843000,-8462.3439948,0.00015709,2]
[421378516,1777519843000,-6550.94759001,0.00015109,2]
[421378519,1777519843000,-7359.39483346,0.00015309,2]
[421378518,1777519843000,-7139.33354864,0.00015209,2]
[421378534,1777519843000,-8893.37932146,0.00015809,2]
[421378536,1777519843000,-7667.11571761,0.00015909,2]
[421378540,1777519843000,-500.0,0.00015909,2]
[421378541,1777519843000,-746.32968294,0.00015976,2]
[421378545,1777519843000,-9565.29315613,0.00016109,2]
[421378549,1777519843000,-8939.38705526,0.00016209,2]
[421378543,1777519843000,-9480.18102116,0.00016009,2]
[421378538,1777519843000,-1346.70285785,0.00015909,2]
[421378547,1777519843000,-535.02972019,0.00016183,2]
[421378530,1777519843000,-177.0,0.00015699,2]
[421378492,1777519843000,-500.0,0.00014603,2]
[421378503,1777519843000,-5371.49101917,0.00014709,2]
[421378489,1777519843000,-500.0,0.00014603,2]
[421378439,1777519843000,-567.61150945,0.00014603,2]
[421378437,1777519843000,-4763.15870547,0.00014509,2]
[421378435,1777519843000,-746.32968298,0.00014504,2]
[421378433,1777519843000,-300.0,0.0001439,2]
[421378431,1777519843000,-300.0,0.0001439,2]
[421378430,1777519843000,-300.0,0.0001439,2]
[421378426,1777519843000,-300.0,0.0001439,2]
[421378422,1777519843000,-300.0,0.0001439,2]
[421378428,1777519843000,-300.0,0.0001439,2]
[421378418,1777519843000,-300.0,0.0001439,2]
[421378416,1777519843000,-300.0,0.0001439,2]
[421378420,1777519843000,-300.0,0.0001439,2]
[421378424,1777519843000,-300.0,0.0001439,2]
[421378414,1777519843000,-300.0,0.0001439,2]
[421378410,1777519843000,-300.0,0.0001439,2]
[421378412,1777519843000,-300.0,0.0001439,2]
[421378408,1777519843000,-300.0,0.0001439,2]
[421378407,1777519843000,-300.0,0.0001439,2]
[421378405,1777519843000,-500.0,0.00014389,2]
[421378403,1777519843000,-3824.77197407,0.00014309,2]
[421378397,1777519843000,-2886.38524267,0.00014009,2]
[421378401,1777519843000,-3602.70204127,0.00014209,2]
[421378395,1777519843000,-300.0,0.00014008,2]
[421378393,1777519843000,-300.0,0.00014008,2]
[421378399,1777519843000,-3013.10571546,0.00014109,2]
[421378389,1777519843000,-150.64343441,0.00013809,2]
[421378487,1777519843000,-500.0,0.00014603,2]
[421378453,1777519843000,-500.0,0.00014603,2]
[421378443,1777519843000,-202.78214078,0.00014603,2]
[421378391,1777519843000,-1947.99851126,0.00013909,2]
[421378445,1777519843000,-500.0,0.00014603,2]
[421378449,1777519843000,-500.0,0.00014603,2]
[421378494,1777519843000,-500.0,0.00014603,2]
[421378485,1777519843000,-500.0,0.00014603,2]
[421378490,1777519843000,-500.0,0.00014603,2]
[421378499,1777519843000,-625.40643432,0.00014603,2]
[421378501,1777519843000,-4781.89469321,0.00014609,2]
[421378505,1777519843000,-600.0,0.00014798,2]
[421378496,1777519843000,-500.0,0.00014603,2]
[421378483,1777519843000,-500.0,0.00014603,2]
[421378468,1777519843000,-500.0,0.00014603,2]
[421378470,1777519843000,-500.0,0.00014603,2]
[421378476,1777519843000,-500.0,0.00014603,2]
[421378478,1777519843000,-500.0,0.00014603,2]
[421378498,1777519843000,-500.0,0.00014603,2]
[421378464,1777519843000,-500.0,0.00014603,2]
[421378480,1777519843000,-500.0,0.00014603,2]
[421378451,1777519843000,-500.0,0.00014603,2]
[421378441,1777519843000,-500.0,0.00014603,2]
[421378455,1777519843000,-500.0,0.00014603,2]
[421378456,1777519843000,-500.0,0.00014603,2]
[421378472,1777519843000,-500.0,0.00014603,2]
[421378458,1777519843000,-500.0,0.00014603,2]
[421378462,1777519843000,-500.0,0.00014603,2]
[421378460,1777519843000,-627.0709905,0.00014603,2]
[421378474,1777519843000,-500.0,0.00014603,2]
[421378466,1777519843000,-500.0,0.00014603,2]
[421378481,1777519843000,-500.0,0.00014603,2]
[421378447,1777519843000,-524.10388067,0.00014603,2]
[421378557,1777519844000,-123.71095853,0.00016209,2]
[421378555,1777519844000,-1001.89779895,0.00016209,2]
[421378567,1777519844000,-288.07357235,0.00016509,2]
[421378565,1777519844000,-7755.07330304,0.00016509,2]
[421378563,1777519844000,-10649.81060433,0.00016409,2]
[421378559,1777519844000,-720.0,0.00016278,2]
[421378561,1777519844000,-10115.14113241,0.00016309,2]
[421378569,1777519844000,-1474.82620582,0.00016509,2]
[421378590,1777519846000,-1055.54422,0.00016607,2]
[421378592,1777519846000,-293.45967434,0.00017373,2]
[421378589,1777519846000,-1148.55262967,0.00016509,2]
[421378594,1777519846000,-204.0,0.00017699,2]
[421378593,1777519846000,-746.32968294,0.00017448,2]
[421378595,1777519846000,-1055.54422,0.00017705,2]
[421378599,1777519846000,-746.32968294,0.0001892,2]
[421378597,1777519846000,-1055.54422,0.00018802,2]
[421378603,1777519846000,-151.4811645,0.00019122,2]
[421378605,1777519846000,-27806.53476496,0.00019404,2]
[421378591,1777519846000,-587.0,0.00016813,2]
[421378596,1777519846000,-864.0,0.00017906,2]
[421378601,1777519846000,-5019.2178801,0.00019,2]
[421378606,1777519894000,-587.23003007,0.000119,5]
[421378607,1777519919000,-1067.34539393,0.00012,2]
[421378650,1777521032000,-1163.20743793,0.00011,2]
[421378644,1777521032000,-353.0,0.00010999,2]
[421378646,1777521032000,-150.0,0.00010999,2]
[421378647,1777521032000,-7412.09378442,0.00011,2]
[421378648,1777521032000,-6313.41,0.00011,2]
[421378643,1777521032000,-567.0,0.00010999,2]
[421378645,1777521032000,-300.0,0.00010999,2]
[421378649,1777521032000,-1343.7500641,0.00011,2]
[421378677,1777521038000,-1925.81703556,0.00011,2]
[421378676,1777521038000,-325.31855434,0.00011,2]
[421378678,1777521038000,-3910.01312365,0.00011,2]
[421378680,1777521038000,-500.0,0.00011997,2]
[421378681,1777521038000,-100.51929183,0.00011997,2]
[421378679,1777521038000,-241.53088181,0.00011997,2]
[421378763,1777521587000,3175.0,0.00021918,120]
[421378826,1777522232000,-151.0,0.00017481,2]
[421378824,1777522232000,-151.0,0.00017478,2]
[421378821,1777522232000,-1000.0,0.00015124,2]
[421378820,1777522232000,-500.0,0.00014708,2]
[421378809,1777522232000,-238.51496384,0.00011996,2]
[421378798,1777522232000,-150.0,0.00011675,2]
[421378806,1777522232000,-61.48503616,0.00011996,2]
[421378804,1777522232000,-300.0,0.00011996,2]
[421378802,1777522232000,-300.0,0.00011996,2]
[421378800,1777522232000,-589.0,0.00011996,2]
[421378823,1777522232000,-449.58610486,0.00016801,2]
[421378797,1777522232000,-987.8868308,0.00011354,10]
[421378825,1777522232000,-325.5485542,0.00017478,2]
[421378814,1777522232000,-7311.43749447,0.00012,2]
[421378812,1777522232000,-300.0,0.00011999,2]
[421378834,1777522232000,-1814.3344932,0.00017998,2]
[421378832,1777522232000,-179.96,0.0001791,2]
[421378831,1777522232000,-168.25,0.0001791,2]
[421378833,1777522232000,-261.89860815,0.00017998,2]
[421378830,1777522232000,-180.06,0.00017908,7]
[421378829,1777522232000,-1862.62349544,0.00017898,2]
[421378822,1777522232000,-204.0,0.00015675,2]
[421378827,1777522232000,-325.548554,0.00017481,2]
[421378818,1777522232000,-1000.0,0.00013699,2]
[421378816,1777522232000,-177.0,0.00013675,2]
[421378835,1777522232000,-180.60338428,0.00017998,2]
[421378810,1777522232000,-1200.0,0.00011996,2]
[421378828,1777522232000,-231.0,0.00017675,2]
[421378902,1777522238000,-148.82219178,0.00017998,2]
[421378899,1777522238000,-1814.3344932,0.00017998,2]
[421378901,1777522238000,-1814.3344932,0.00017998,2]
[421378897,1777522238000,-1633.73110892,0.00017998,2]
[421378937,1777522246000,-7841.93112444,0.00018,7]
[421378939,1777522599000,10000.0,0.00021918,120]
[421378940,1777522605000,10000.0,0.00021918,120]
[421378941,1777522817000,8300.0,0.00021918,120]
[421378942,1777522951000,164.0,0.00020121,120]
[421378943,1777522952000,164.0,0.00021127,120]
[421378962,1777523441000,-2308.02394092,0.00012042,10]
[421378965,1777523441000,-300.0,0.00012998,2]
[421378963,1777523441000,-592.0,0.00012164,2]
[421378970,1777523441000,-500.0,0.00012999,2]
[421378964,1777523441000,-150.0,0.00012364,2]
[421378967,1777523441000,-500.0,0.00012999,2]
[421378969,1777523441000,-500.0,0.00012999,2]
[421378966,1777523441000,-300.0,0.00012998,2]
[421378968,1777523441000,-500.0,0.00012999,2]
[421378971,1777523441000,-500.0,0.00012999,2]
[421378975,1777523441000,-500.0,0.00012999,2]
[421378972,1777523441000,-500.0,0.00012999,2]
[421378980,1777523441000,-500.0,0.00012999,2]
[421378979,1777523441000,-500.0,0.00012999,2]
[421378978,1777523441000,-326.49867086,0.00012999,2]
[421378976,1777523441000,-500.0,0.00012999,2]
[421378973,1777523441000,-500.0,0.00012999,2]
[421378974,1777523441000,-500.0,0.00012999,2]
[421378981,1777523441000,-28281.10262201,0.00013,2]
[421378977,1777523441000,-500.0,0.00012999,2]
[421379000,1777523446000,-440.87684538,0.00013,2]
[421379001,1777523447000,-1684.74542026,0.00013,2]
[421379002,1777523514000,-328.06296408,0.0001287,10]
[421379007,1777524588000,13759.34,0.0002,120]
[421379024,1777524632000,-574.64198608,0.00011884,2]
[421379020,1777524632000,-2488.66293517,0.00011784,2]
[421379022,1777524632000,-328.06296408,0.00011884,2]
[421379086,1777524637000,-564.67584955,0.00013,2]
[421379082,1777524637000,-150.0,0.00012054,2]
[421379084,1777524637000,-250.0,0.00012999,2]
[421379080,1777524637000,-6.35801392,0.00011884,2]
[421379129,1777524906000,217.24,0.00021917,120]
[421379130,1777524915000,26589.4715643,0.0002191,120]
[421379133,1777525451000,10057.11,0.000219,120]
[421379134,1777525470000,9310.76,0.000219,120]
[421379140,1777525831000,-377.62847932,0.00012473,2]
[421379173,1777525838000,-501.73950661,0.00013984,2]
[421379175,1777525838000,-500.0,0.00013984,2]
[421379176,1777525838000,-500.0,0.00013984,2]
[421379179,1777525838000,-500.0,0.00013984,2]
[421379182,1777525838000,-500.0,0.00013984,2]
[421379184,1777525838000,-500.0,0.00013984,2]
[421379185,1777525838000,-500.0,0.00013984,2]
[421379189,1777525838000,-500.0,0.00013984,2]
[421379183,1777525838000,-500.0,0.00013984,2]
[421379193,1777525838000,-153.47704251,0.00013984,2]
[421379187,1777525838000,-500.0,0.00013984,2]
[421379180,1777525838000,-500.0,0.00013984,2]
[421379186,1777525838000,-500.0,0.00013984,2]
[421379190,1777525838000,-500.0,0.00013984,2]
[421379188,1777525838000,-294.5521419,0.00013984,2]
[421379191,1777525838000,-500.0,0.00013984,2]
[421379198,1777525838000,-500.0,0.00013984,2]
[421379196,1777525838000,-500.0,0.00013984,2]
[421379200,1777525838000,-326.19350774,0.00013984,2]
[421379192,1777525838000,-500.0,0.00013984,2]
[421379177,1777525838000,-500.0,0.00013984,2]
[421379174,1777525838000,-500.0,0.00013984,2]
[421379172,1777525838000,-1873.20470899,0.00013904,2]
[421379199,1777525838000,-500.0,0.00013984,2]
[421379155,1777525838000,-575.0,0.00012473,2]
[421379156,1777525838000,-170.3409283,0.00012734,2]
[421379153,1777525838000,-398.76664628,0.00012473,2]
[421379154,1777525838000,-150.0,0.00012473,2]
[421379159,1777525838000,-8258.7033374,0.00013,2]
[421379169,1777525838000,-5000.0,0.00013699,2]
[421379167,1777525838000,-1000.0,0.00013699,2]
[421379160,1777525838000,-410.56249977,0.00013104,2]
[421379178,1777525838000,-500.0,0.00013984,2]
[421379162,1777525838000,-1089.20406399,0.00013304,2]
[421379158,1777525838000,-1200.0,0.00012999,2]
[421379164,1777525838000,-1020.59729461,0.00013404,2]
[421379165,1777525838000,-1423.27189519,0.00013504,2]
[421379161,1777525838000,-749.88328188,0.00013204,2]
[421379166,1777525838000,-1428.5248461,0.00013604,2]
[421379168,1777525838000,-1000.0,0.00013699,2]
[421379171,1777525838000,-1648.23830209,0.00013704,2]
[421379181,1777525838000,-500.0,0.00013984,2]
[421379170,1777525838000,-892.286181,0.00013699,2]
[421379163,1777525838000,-1198.30548845,0.00013404,2]
[421379204,1777525838000,-500.0,0.00013984,2]
[421379157,1777525838000,-300.0,0.00012999,2]
[421379195,1777525838000,-500.0,0.00013984,2]
[421379223,1777525838000,-325.548554,0.00015015,2]
[421379225,1777525838000,-456.0406255,0.00015015,2]
[421379226,1777525838000,-325.5485541,0.00015015,2]
[421379228,1777525838000,-456.0872351,0.00015015,2]
[421379237,1777525838000,-1728.27100954,0.00015202,2]
[421379239,1777525838000,-1728.27100954,0.00015202,2]
[421379229,1777525838000,-431.6638067,0.00015015,2]
[421379231,1777525838000,-3308.65696566,0.00015104,2]
[421379235,1777525838000,-1728.27100954,0.00015202,2]
[421379227,1777525838000,-456.0872351,0.00015015,2]
[421379230,1777525838000,-325.548554,0.00015015,2]
[421379238,1777525838000,-1728.27100954,0.00015202,2]
[421379233,1777525838000,-1728.27100954,0.00015202,2]
[421379236,1777525838000,-1728.27100954,0.00015202,2]
[421379234,1777525838000,-1728.27100954,0.00015202,2]
[421379242,1777525838000,-1728.27100954,0.00015202,2]
[421379244,1777525838000,-435.71555236,0.00015202,2]
[421379241,1777525838000,-1728.27100954,0.00015202,2]
[421379243,1777525838000,-1728.27100954,0.00015202,2]
[421379194,1777525838000,-500.0,0.00013984,2]
[421379232,1777525838000,-183.3290257,0.00015202,2]
[421379218,1777525838000,-3082.76633451,0.00014904,2]
[421379240,1777525838000,-1728.27100954,0.00015202,2]
[421379222,1777525838000,-325.548554,0.00015015,2]
[421379224,1777525838000,-325.548554,0.00015015,2]
[421379197,1777525838000,-500.0,0.00013984,2]
[421379201,1777525838000,-500.0,0.00013984,2]
[421379203,1777525838000,-500.0,0.00013984,2]
[421379202,1777525838000,-500.0,0.00013984,2]
[421379211,1777525838000,-2548.20310924,0.00014404,2]
[421379206,1777525838000,-2070.55403462,0.00014004,2]
[421379215,1777525838000,-2856.35329006,0.00014704,2]
[421379205,1777525838000,-2065.1418159,0.00013986,2]
[421379213,1777525838000,-2629.94024562,0.00014504,2]
[421379209,1777525838000,-420.0,0.00014256,2]
[421379208,1777525838000,-2323.22739829,0.00014204,2]
[421379217,1777525838000,-600.0,0.00014895,2]
[421379210,1777525838000,-2403.52720117,0.00014304,2]
[421379219,1777525838000,-159.17852013,0.0001493,2]
[421379216,1777525838000,-2952.33015294,0.00014804,2]
[421379221,1777525838000,-456.0872351,0.00015013,2]
[421379207,1777525838000,-2098.17111589,0.00014104,2]
[421379212,1777525838000,-177.0,0.00014473,2]
[421379214,1777525838000,-2750.26663109,0.00014604,2]
[421379220,1777525838000,-3154.39367479,0.00015004,2]
[421379594,1777527032000,-951.35634871,0.000125,2]
[421379619,1777527047000,-152.0,0.00013364,7]
[421379616,1777527047000,-1366.51294488,0.000125,2]
[421379628,1777527047000,-2306.4238932,0.00013971,2]
[421379618,1777527047000,-152.0,0.00013364,7]
[421379617,1777527047000,-150.0,0.00012932,2]
[421379622,1777527047000,-1165.41965178,0.00013571,2]
[421379629,1777527047000,-661.17127077,0.00014171,2]
[421379621,1777527047000,-1548.8563619,0.00013562,2]
[421379623,1777527047000,-1735.92177249,0.00013671,2]
[421379624,1777527047000,-1000.0,0.00013699,2]
[421379627,1777527047000,-2229.06805694,0.00013871,2]
[421379625,1777527047000,-1000.0,0.00013699,2]
[421379626,1777527047000,-1856.12537131,0.00013771,2]
[421379620,1777527047000,-594.91753107,0.00013471,2]
[421379762,1777528232000,-597.0,0.00013506,2]
[421379760,1777528232000,-150.0,0.00013501,2]
[421379764,1777528232000,-156.85434775,0.00013514,2]
[421379758,1777528232000,-152.0,0.00013497,7]
[421379767,1777528232000,-265.7305315,0.00013514,2]
[421379832,1777528238000,-1513.6309262,0.00013805,2]
[421379849,1777528238000,-151.0,0.00014209,2]
[421379841,1777528238000,-3866.0511617,0.00014122,2]
[421379845,1777528238000,-500.0,0.00014171,2]
[421379836,1777528238000,-1542.88342387,0.00014009,2]
[421379838,1777528238000,-500.0,0.00014108,2]
[421379835,1777528238000,-1740.26041765,0.00014005,2]
[421379831,1777528238000,-1423.49471177,0.00013705,2]
[421379830,1777528238000,-300.0,0.00013704,2]
[421379834,1777528238000,-1444.41714211,0.00013909,2]
[421379824,1777528238000,-1200.0,0.00013698,2]